bitfinex/quotes_ETHUSD_20251012
["timestamp","ask_amount","ask_price","bid_price","bid_amount"]
[1760242133769,0.30858428,3813.3,3812.1,2.6232181]
[1760242134136,0.30858428,3813.3,3812.7,0.1304]
[1760242134342,2.62208363,3813.8,3812.4,0.46]
[1760242134543,2.75245818,3813.8,3813.1,0.1304]
[1760242134778,0.001,3813.6,3813.1,0.1304]
[1760242135081,0.4645,3813.6,3813.1,0.1304]
[1760242135246,0.32170257,3813.5,3813.1,0.1304]
[1760242135673,3.08589536,3813.4,3812.4,2.62301494]
[1760242135878,2.62240182,3813.3,3812.9,0.1304]
[1760242136378,0.4635,3813.3,3812.9,0.1304]
[1760242136784,3.0859354,3813.3,3812.9,0.1304]
[1760242137010,3.0859779,3813.2,3812.9,0.1304]
[1760242137172,3.0859779,3813.2,3812.2,2.62315213]
[1760242137173,0.30859779,3813.1,3812.2,2.62315213]
[1760242137492,0.001,3813.6,3812.2,0.46]
[1760242137688,0.001,3813.6,3812.8,2.62267707]
[1760242138359,0.001,3813.6,3812.9,2.62260776]
[1760242138561,0.001,3813.6,3812.9,2.62260702]
[1760242139048,0.001,3813.6,3813.5,3.25586301]
[1760242139459,0.001,3813.6,3813.5,3.71586301]
[1760242141192,0.001,3813.6,3813.1,0.46]
[1760242141366,0.001,3813.6,3813.2,0.6336]
[1760242141565,0.001,3813.6,3813.5,4.54226301]
[1760242141980,0.001,3813.6,3813.2,0.46]
[1760242142198,0.001,3813.6,3813.3,0.30136]
[1760242142504,0.025,3815.0,3814.9,2.62130068]
[1760242142665,0.214,3817.9,3815.5,0.6336]
[1760242142868,0.214,3817.9,3815.7,0.6336]
[1760242143095,0.4635,3818.3,3815.9,0.6336]
[1760242143257,0.4635,3818.3,3816.4,2.5536]
[1760242143459,0.4635,3818.3,3817.2,0.6336]
[1760242143659,0.4635,3818.3,3817.1,2.61978989]
[1760242143998,0.214,3818.4,3816.5,0.1751]
[1760242144211,0.4635,3818.2,3816.6,1.0936]
[1760242144410,0.6775,3818.7,3816.7,1.0936]
[1760242144722,2.61903229,3818.3,3817.1,3.25336515]
[1760242145009,2.61903229,3818.3,3816.7,0.46]
[1760242145010,2.61911883,3818.1,3816.7,0.46]
[1760242145209,0.26190323,3818.2,3816.7,0.46]
[1760242145505,0.4635,3819.0,3817.1,0.6336]
[1760242145709,2.61916858,3818.1,3816.8,0.6336]
[1760242145872,2.61903709,3818.2,3817.2,0.46]
[1760242146074,2.61904252,3818.2,3817.2,0.46]
[1760242146274,1.92,3818.7,3817.3,0.6336]
[1760242146488,2.61910826,3818.1,3817.3,0.6336]
[1760242146784,0.4635,3818.3,3816.6,0.46]
[1760242146988,2.61933342,3817.8,3816.7,0.6336]
[1760242147211,2.61929552,3817.9,3817.4,0.1304]
[1760242147376,0.1304,3818.1,3817.4,0.1304]
[1760242147721,0.1304,3818.1,3817.0,0.46]
[1760242147722,0.214,3819.6,3817.5,0.46]
[1760242148009,2.61805985,3819.7,3818.4,0.6336]
[1760242148183,2.61810248,3819.6,3818.5,0.1171]
[1760242148374,2.61816215,3819.5,3818.5,0.1171]
[1760242148580,2.61844524,3819.1,3818.1,0.1171]
[1760242148773,2.88004516,3819.4,3818.1,0.1171]
[1760242148979,0.26181621,3819.4,3818.2,1.0936]
[1760242149213,0.4635,3820.1,3818.5,2.61880702]
[1760242149398,0.4635,3820.1,3818.7,0.6336]
[1760242149710,2.6182221,3819.4,3818.2,0.6336]
[1760242150015,0.6775,3819.8,3818.2,0.6336]
[1760242150177,0.4635,3819.7,3816.3,15.67247188]
[1760242150376,13.05215967,3819.3,3816.6,0.46]
[1760242150576,2.61901084,3818.3,3817.0,2.61979111]
[1760242150885,2.61890089,3818.4,3817.2,2.61972126]
[1760242151097,2.61899962,3818.3,3817.3,0.46]
[1760242151297,2.61876454,3818.6,3817.3,0.46]
[1760242151511,4.53802226,3819.7,3817.4,0.6336]
[1760242151512,2.6188407,3818.5,3817.4,0.6336]
[1760242151822,2.61866994,3818.8,3817.4,0.6336]
[1760242152018,2.61897359,3818.3,3817.4,0.6336]
[1760242152224,0.26189736,3818.2,3816.9,2.61991629]
[1760242152391,2.61878995,3818.6,3816.5,0.1751]
[1760242152713,4.53825238,3819.4,3816.5,0.1751]
[1760242152714,0.4635,3818.1,3816.5,0.1751]
[1760242152880,1.92,3819.0,3816.6,0.46]
[1760242153087,0.4635,3818.9,3817.2,2.61968513]
[1760242153422,2.61860535,3818.9,3817.1,2.6197591]
[1760242153622,0.91736054,3818.8,3817.1,0.6336]
[1760242153777,3.08219222,3818.7,3817.0,0.46]
[1760242154120,2.61919999,3818.0,3817.0,0.46]
[1760242154484,2.61919999,3818.0,3817.0,3.07985552]
[1760242154823,2.61924232,3817.9,3817.0,0.46]
[1760242155124,2.88130146,3817.8,3816.5,0.1751]
[1760242155325,2.61953931,3817.5,3816.5,0.1751]
[1760242155619,0.26192423,3817.8,3816.6,3.0801331]
[1760242155779,2.61926123,3817.9,3816.8,2.61992998]
[1760242155979,2.61926123,3817.9,3816.7,1.0936]
[1760242155980,2.61882938,3818.5,3817.1,2.61978989]
[1760242156323,0.001,3818.6,3817.2,1.0936]
[1760242156324,2.61978373,3818.6,3817.2,1.0936]
[1760242156504,2.61904091,3818.2,3817.2,1.0936]
[1760242156822,2.88106802,3818.1,3817.2,1.0936]
[1760242157523,2.61917234,3818.0,3817.9,0.1304]
[1760242157685,0.5939,3818.0,3817.4,0.1304]
[1760242157880,2.61937776,3817.8,3817.4,0.1304]
[1760242158197,0.1304,3818.0,3817.4,0.1304]
[1760242158412,0.30113577,3817.9,3817.4,0.1304]
[1760242158786,2.92039759,3817.9,3817.4,0.1304]
[1760242159202,0.30113577,3817.9,3817.4,0.1304]
[1760242159347,0.001,3818.6,3817.7,0.6336]
[1760242159548,0.001,3818.6,3817.5,0.46]
[1760242159750,0.001,3818.6,3818.1,2.61908057]
[1760242160116,0.001,3818.6,3818.2,2.61900482]
[1760242160747,0.001,3818.6,3817.9,2.61923687]
[1760242160948,0.4645,3818.6,3817.9,2.61923687]
[1760242161154,2.61889578,3818.5,3817.5,2.61947981]
[1760242161450,0.30833958,3818.4,3817.5,3.07950492]
[1760242161606,0.001,3818.6,3817.7,2.61932843]
[1760242161810,2.61976396,3818.6,3817.7,2.61932843]
[1760242162049,0.001,3818.6,3817.8,2.6192854]
[1760242162252,2.61976097,3818.6,3817.5,3.07951397]
[1760242162424,2.61896035,3818.4,3817.3,2.61965263]
[1760242162624,0.52387294,3818.3,3817.3,2.61965263]
[1760242162850,2.61921948,3818.0,3816.7,2.62006418]
[1760242163066,2.61921948,3818.0,3817.0,2.61983186]
[1760242163253,2.61931159,3817.8,3816.6,3.05551082]
[1760242163453,2.61931159,3817.8,3816.8,2.61996866]
[1760242163770,0.4738,3817.7,3816.1,0.4354]
[1760242163956,0.4738,3817.7,3815.7,0.4354]
[1760242164267,2.61958401,3817.4,3816.4,2.62026408]
[1760242164471,2.61972126,3817.2,3815.7,2.62074364]
[1760242164630,2.61996363,3816.9,3815.9,2.62055701]
[1760242164837,3.09373028,3816.9,3815.5,2.62088848]
[1760242165175,0.4738,3816.8,3815.2,2.621075]
[1760242165468,2.6199265,3817.0,3815.2,2.621075]
[1760242165469,2.62040992,3816.2,3815.2,2.62108091]
[1760242165667,2.62040992,3816.2,3815.2,2.62109369]
[1760242165868,2.62054637,3816.0,3814.8,2.80160633]
[1760242166077,0.6985,3815.9,3814.8,2.62135692]
[1760242166234,2.62068786,3815.8,3814.8,2.62135692]
[1760242166438,0.33191879,3815.7,3814.3,0.4354]
[1760242166759,0.6985,3815.9,3814.3,0.4354]
[1760242167074,0.4738,3815.6,3814.3,2.62165306]
[1760242167374,2.62095878,3815.4,3814.3,2.62164474]
[1760242167582,0.4738,3815.6,3814.0,0.5525]
[1760242167765,2.62116116,3815.2,3813.5,0.4354]
[1760242168074,2.62116116,3815.2,3813.9,2.62198281]
[1760242168075,2.62129235,3815.0,3813.9,2.62198281]
[1760242168233,2.6213255,3814.9,3813.9,2.62198281]
[1760242168435,0.26211612,3815.1,3813.7,2.62212232]
[1760242168770,0.4515,3815.0,3813.8,2.62199722]
[1760242168933,0.4515,3815.0,3813.9,2.62195421]
[1760242168934,2.62130068,3814.9,3813.9,2.62195421]
[1760242169135,2.62139616,3814.8,3813.4,0.6336]
[1760242169340,2.62139616,3814.8,3813.9,2.62198484]
[1760242169646,2.62139616,3814.8,3813.6,2.6221847]
[1760242169647,0.1304,3814.7,3814.1,0.1304]
[1760242170044,13.05215967,3815.8,3813.3,2.92374369]
[1760242170045,4.54077856,3815.7,3813.3,2.92374369]
[1760242170253,4.54077856,3815.7,3813.1,0.4567]
[1760242170254,0.1304,3814.0,3813.4,0.1304]
[1760242170472,0.6792,3813.9,3812.7,2.62279791]
[1760242170672,0.6792,3813.9,3813.1,0.1304]
[1760242170673,0.1304,3813.8,3813.1,0.1304]
[1760242171070,2.75248052,3813.8,3813.1,0.1304]
[1760242171471,2.622192,3813.7,3813.1,0.1304]
[1760242171672,0.47356805,3813.8,3813.1,0.1304]
[1760242171872,0.6792,3813.9,3812.8,2.62268897]
[1760242172096,0.1304,3813.5,3812.9,0.1304]
[1760242172896,0.1304,3813.5,3813.0,2.62258771]
[1760242173199,0.1304,3813.5,3812.9,0.1304]
[1760242173699,0.1304,3813.5,3812.9,2.75305958]
[1760242173899,0.1304,3813.5,3812.9,0.1304]
[1760242174823,0.2277,3813.9,3812.7,2.62281304]
[1760242174824,0.6792,3813.9,3812.7,2.62281304]
[1760242174998,2.62214272,3813.7,3812.7,2.62281304]
[1760242175190,0.4515,3813.6,3812.5,0.002]
[1760242175389,2.62240446,3813.3,3812.5,0.002]
[1760242175628,0.4515,3813.6,3812.5,2.62493588]
[1760242175816,0.4515,3813.6,3812.5,0.002]
[1760242176010,3.07370942,3813.6,3812.5,0.002]
[1760242176324,0.2277,3813.9,3812.5,0.4587]
[1760242176525,0.2277,3813.9,3812.9,2.62263796]
[1760242176823,0.2277,3813.9,3812.5,0.4587]
[1760242176824,2.62219864,3813.6,3812.5,0.4587]
[1760242177021,0.2277,3813.9,3812.8,2.62269605]
[1760242177229,0.4515,3813.8,3812.5,0.002]
[1760242177393,2.62241656,3813.3,3812.5,0.002]
[1760242177595,2.62231427,3813.5,3812.5,0.002]
[1760242178306,2.62231427,3813.5,3812.7,2.62281018]
[1760242178509,2.62231427,3813.5,3812.5,0.002]
[1760242178697,3.07383635,3813.4,3812.5,0.002]
[1760242179128,3.07383635,3813.4,3812.5,2.62494181]
[1760242179292,0.5578075,3813.9,3812.5,0.002]
[1760242179293,0.4515,3813.8,3812.5,0.002]
[1760242179498,0.4515,3813.8,3812.8,2.62269894]
[1760242179813,0.4515,3813.8,3812.5,0.002]
[1760242179814,0.4515,3813.7,3812.5,0.002]
[1760242180014,2.62239246,3813.4,3812.5,0.002]
[1760242180218,3.14688917,3813.3,3812.5,0.002]
[1760242180518,2.62246931,3813.2,3812.5,0.002]
[1760242180722,2.62255118,3813.1,3812.5,0.002]
[1760242180890,2.62247944,3813.2,3812.5,0.002]
[1760242181095,0.97595867,3813.3,3812.5,0.002]
[1760242181096,0.4515,3813.0,3812.5,0.002]
[1760242181832,2.62234263,3813.4,3812.5,0.002]
[1760242182021,2.62234263,3813.4,3812.5,2.62495032]
[1760242182224,0.2277,3813.9,3812.8,2.62269785]
[1760242182536,2.62227621,3813.5,3812.6,2.62286763]
[1760242182731,0.4515,3813.4,3812.6,2.62286763]
[1760242183095,0.4515,3813.4,3812.7,2.62281247]
[1760242183498,0.4515,3813.4,3812.6,2.62286626]
[1760242183699,0.4515,3813.4,3812.9,2.62266513]
[1760242183931,0.2277,3813.9,3812.5,0.002]
[1760242184116,2.84969713,3813.9,3813.0,2.62255999]
[1760242184298,3.44207674,3813.9,3813.1,2.62250563]
[1760242184498,2.62206988,3813.8,3812.9,2.62267565]
[1760242184711,2.62206988,3813.8,3812.9,0.1304]
[1760242184712,0.1304,3813.6,3812.9,0.1304]
[1760242184938,3.0746313,3813.5,3812.5,0.002]
[1760242185241,0.1304,3813.0,3812.5,0.002]
[1760242185599,0.4523,3812.9,3812.5,0.002]
[1760242185832,0.1304,3813.0,3812.5,2.62494456]
[1760242186098,0.5827,3813.0,3812.5,0.002]
[1760242186302,0.4523,3812.9,3812.5,0.002]
[1760242186499,2.62288202,3812.6,3812.5,0.002]
[1760242186713,0.1304,3812.6,3812.5,0.002]
[1760242186910,0.5827,3812.6,3812.5,0.002]
[1760242187831,3.20558202,3812.6,3812.5,0.002]
[1760242188032,3.78841578,3812.6,3812.5,0.002]
[1760242191518,5.70841578,3812.6,3812.5,0.002]
[1760242193541,3.07518202,3812.6,3812.5,0.002]
[1760242201459,2.62385732,3811.2,3810.6,0.002]
[1760242201704,0.2208,3810.7,3810.6,0.002]
[1760242201861,2.84498978,3810.7,3810.6,0.002]
[1760242202060,3.29878978,3810.7,3810.6,0.002]
[1760242202354,3.89107815,3810.7,3810.6,0.002]
[1760242205359,5.81107815,3810.7,3810.6,0.002]
[1760242206092,6.76476227,3810.7,3810.6,0.002]
[1760242206394,5.81107815,3810.7,3810.6,0.002]
[1760242206894,6.44467815,3810.7,3810.6,0.002]
[1760242208211,0.1312,3808.7,3807.4,0.5873]
[1760242208399,2.62543088,3808.9,3808.0,2.62602683]
[1760242208720,2.62487859,3809.7,3807.9,0.1312]
[1760242208721,0.1312,3808.6,3807.9,0.1312]
[1760242208893,0.1312,3808.3,3807.6,0.1312]
[1760242209099,0.1312,3808.3,3807.9,2.62611428]
[1760242209309,0.4538,3809.3,3808.0,2.62605042]
[1760242209508,0.1312,3808.8,3808.2,0.1312]
[1760242210321,0.4538,3808.7,3807.7,2.62623725]
[1760242210620,0.1312,3808.6,3807.9,0.1312]
[1760242211126,0.4538,3808.5,3807.9,0.1312]
[1760242211322,0.4538,3808.5,3807.5,0.002]
[1760242211491,0.1312,3808.0,3807.5,0.002]
[1760242211682,0.1312,3808.0,3807.6,2.6262587]
[1760242212822,0.1312,3808.0,3807.5,0.002]
[1760242213027,0.1312,3808.0,3807.6,2.62632629]
[1760242213389,0.1312,3808.0,3807.7,2.62625151]
[1760242213813,0.1312,3808.0,3807.5,0.002]
[1760242214018,0.6746,3807.9,3807.5,0.002]
[1760242214517,0.585,3807.8,3807.5,0.002]
[1760242214725,0.585,3807.8,3807.5,2.62838755]
[1760242214890,0.585,3807.8,3807.5,0.002]
[1760242215291,0.585,3807.8,3807.5,2.62837766]
[1760242215845,0.585,3807.8,3807.6,2.62631644]
[1760242216348,0.585,3807.8,3807.5,2.6283389]
[1760242216828,0.1312,3807.8,3807.5,0.002]
[1760242217034,0.4538,3807.7,3807.5,0.002]
[1760242217530,2.846979,3807.9,3807.5,0.002]
[1760242217728,0.4538,3807.6,3807.5,0.002]
[1760242218043,3.08012629,3807.6,3807.5,0.002]
[1760242218213,0.4538,3807.6,3807.5,0.002]
[1760242218516,2.62587565,3808.3,3807.5,0.002]
[1760242218721,0.4538,3808.0,3807.5,0.002]
[1760242218918,0.6746,3808.4,3807.5,0.002]
[1760242219136,0.6746,3808.4,3807.8,2.62614186]
[1760242219339,0.6746,3808.4,3807.9,2.62610053]
[1760242219529,0.2208,3808.4,3807.9,2.62610053]
[1760242219723,0.2208,3808.4,3807.5,0.002]
[1760242219724,0.4538,3808.3,3807.5,0.002]
[1760242219929,0.4538,3808.6,3808.2,2.62591109]
[1760242220252,3.07902401,3809.2,3808.3,2.62578083]
[1760242220411,0.2208,3809.1,3808.4,2.62575662]
[1760242221061,0.2208,3809.5,3808.1,0.1803]
[1760242221215,0.2208,3809.7,3809.0,2.62529583]
[1760242221416,0.4538,3809.6,3808.5,2.62569048]
[1760242221758,0.4538,3809.6,3808.8,2.6254707]
[1760242222413,2.62502961,3809.5,3808.7,2.62555722]
[1760242222617,0.4538,3809.6,3808.8,2.62548992]
[1760242222816,3.0788018,3809.6,3808.7,2.62554581]
[1760242223097,0.2208,3809.7,3808.7,2.62554581]
[1760242223098,3.05791944,3809.5,3808.7,2.62554581]
[1760242223346,3.05791944,3809.5,3808.6,2.6256222]
[1760242223716,0.4329,3809.4,3808.6,2.6256222]
[1760242223916,0.4329,3809.4,3808.7,2.62556767]
[1760242224457,2.84569023,3809.7,3808.7,2.62556767]
[1760242224458,0.6537,3809.7,3808.7,3.18165187]
[1760242224755,0.6537,3809.7,3808.9,2.62536917]
[1760242224935,3.27860881,3809.7,3808.8,2.62548981]
[1760242225444,0.2208,3809.7,3808.7,2.62555997]
[1760242225616,2.62507754,3809.5,3808.3,2.62577631]
[1760242225818,2.62550069,3808.8,3807.6,2.62632629]
[1760242226048,2.62499839,3809.6,3807.3,1.92]
[1760242226049,0.4329,3808.7,3807.3,1.92]
[1760242226219,0.4329,3808.7,3808.1,2.62597283]
[1760242226882,0.4329,3808.7,3807.4,0.6336]
[1760242227149,3.05847363,3808.7,3807.7,1.92]
[1760242227357,0.73874736,3808.6,3807.1,0.002]
[1760242227510,0.1312,3808.4,3807.8,2.62617595]
[1760242228456,0.1312,3808.4,3807.8,2.62618428]
[1760242228656,0.1312,3808.4,3807.8,2.62618835]
[1760242229020,0.1312,3808.4,3807.9,2.62611227]
[1760242229337,0.1312,3808.4,3807.7,0.1312]
[1760242229338,0.1312,3808.4,3808.0,2.62599748]
[1760242229546,0.1312,3808.4,3808.3,2.62584355]
[1760242229728,0.2208,3809.7,3808.4,2.62576353]
[1760242229729,1.92,3809.2,3808.4,2.62576353]
[1760242230331,0.4329,3809.3,3808.5,2.62567642]
[1760242230531,0.4329,3809.2,3807.8,2.62617199]
[1760242230747,2.6254946,3808.9,3807.5,0.002]
[1760242230934,0.30583946,3808.9,3808.1,2.62592441]
[1760242231140,0.001,3809.8,3808.4,0.6336]
[1760242231387,0.001,3809.8,3809.6,2.62493894]
[1760242231537,0.001,3809.8,3809.4,2.62501752]
[1760242231742,0.001,3809.8,3808.9,0.4358]
[1760242232244,0.001,3809.8,3809.7,2.62487859]
[1760242233538,0.001,3809.8,3809.5,2.62495222]
[1760242233745,0.4339,3809.8,3809.5,2.62495222]
[1760242233940,0.4339,3809.8,3809.6,2.62489463]
[1760242234192,0.4329,3809.7,3808.2,0.1803]
[1760242234486,0.3285048,3809.6,3808.2,0.1803]
[1760242234654,0.3285048,3809.6,3808.9,2.62540505]
[1760242234840,0.4329,3809.5,3808.4,2.62574147]
[1760242235047,0.4329,3809.4,3808.4,2.62574147]
[1760242235241,3.05800105,3809.4,3808.5,2.62570565]
[1760242235477,0.33865059,3809.3,3808.5,2.62570565]
[1760242235683,0.33865059,3809.3,3807.8,3.69552594]
[1760242235684,0.4329,3809.2,3807.8,0.4358]
[1760242235882,3.05813736,3809.2,3808.4,2.62575172]
[1760242236383,0.4329,3809.2,3808.5,2.62567275]
[1760242236577,0.4329,3809.2,3808.6,2.62562986]
[1760242236779,0.001,3809.8,3808.6,0.6336]
[1760242237081,0.001,3809.8,3809.7,3.25847859]
[1760242237400,0.001,3809.8,3809.7,5.76682382]
[1760242237688,0.001,3809.8,3809.7,19.23035786]
[1760242237860,0.001,3809.8,3809.7,6.20262382]
[1760242239762,0.001,3809.8,3809.7,6.33382382]
[1760242240091,0.001,3810.2,3810.1,5.17820302]
[1760242240405,0.001,3810.2,3810.1,19.32542745]
[1760242240570,0.001,3810.2,3810.1,19.76122745]
[1760242240773,0.001,3810.2,3810.1,19.89242745]
[1760242242401,0.2235,3813.0,3810.5,3.25792751]
[1760242242545,0.1304,3812.7,3812.2,2.62309145]
[1760242242861,0.1304,3812.7,3812.3,0.1171]
[1760242243064,0.1304,3813.5,3813.0,2.62256195]
[1760242243264,13.02773404,3815.5,3812.7,2.62276853]
[1760242243265,0.4718,3813.4,3812.7,2.6227484]
[1760242243578,0.4718,3813.4,3812.8,2.6227437]
[1760242243896,0.4718,3813.4,3812.6,2.62286222]
[1760242244047,0.78119669,3813.4,3812.1,0.1171]
[1760242244246,0.4718,3813.4,3812.4,2.62301254]
[1760242244462,3.09420797,3813.3,3812.0,2.5536]
[1760242244761,3.09427317,3813.2,3812.1,2.6231626]
[1760242244967,3.09427317,3813.2,3811.8,0.6336]
[1760242244968,2.62275772,3812.8,3811.2,0.4323]
[1760242245267,2.62281532,3812.7,3811.7,2.62348136]
[1760242245460,2.62281532,3812.7,3810.6,0.4323]
[1760242245461,0.4718,3812.6,3810.6,0.4323]
[1760242245710,0.2277,3813.9,3811.1,13.02773404]
[1760242246041,2.6226129,3813.0,3811.3,0.6336]
[1760242246236,2.6226129,3813.0,3811.9,2.62336266]
[1760242246538,0.4718,3812.9,3812.1,2.6231642]
[1760242246732,0.78124108,3812.9,3812.0,2.6232908]
[1760242246945,0.78124108,3812.9,3811.3,3.25737666]
[1760242246946,2.62284304,3812.7,3811.7,2.62349263]
[1760242247234,0.4718,3812.8,3811.8,2.62336578]
[1760242247434,0.4718,3812.8,3811.3,0.6336]
[1760242247435,2.62281399,3812.7,3811.7,2.62349627]
[1760242247632,0.3094614,3812.6,3812.0,2.62329443]
[1760242247831,0.3094614,3812.6,3811.3,0.6336]
[1760242247832,0.4718,3812.8,3811.8,2.62336541]
[1760242248126,3.09455417,3812.8,3811.9,2.62336332]
[1760242248492,0.4718,3812.8,3812.0,2.62329267]
[1760242249043,3.09455486,3812.8,3811.9,2.62336112]
[1760242249326,0.30945549,3812.7,3811.9,2.62336112]
[1760242250250,0.30945549,3812.7,3811.6,3.05585352]
[1760242250251,2.93227821,3812.7,3811.7,2.62350132]
[1760242250449,0.4718,3812.6,3811.2,0.6336]
[1760242250624,0.30945549,3812.7,3812.0,2.6232907]
[1760242250825,0.30945549,3812.7,3811.5,2.62359708]
[1760242251023,0.78125549,3812.7,3811.8,2.62342693]
[1760242251250,2.91611212,3812.6,3811.6,2.62354783]
[1760242251548,0.29322007,3812.6,3811.8,2.62342944]
[1760242251710,2.62295081,3812.5,3810.8,0.4632]
[1760242251913,0.29161709,3812.4,3811.0,0.6336]
[1760242252116,0.29161709,3812.4,3811.6,2.62352703]
[1760242252311,0.29161709,3812.4,3811.1,0.4632]
[1760242252539,0.29161709,3812.4,3811.7,2.62349108]
[1760242253250,0.1304,3812.3,3811.7,2.75389108]
[1760242253453,0.1304,3812.3,3811.7,0.1304]
[1760242253915,0.29161709,3812.4,3811.5,2.62363494]
[1760242253916,0.4295,3812.2,3811.5,2.62363494]
[1760242254118,0.46481848,3812.1,3811.5,0.1304]
[1760242254621,0.46481848,3812.1,3811.5,2.75400977]
[1760242255038,0.46481848,3812.1,3811.6,2.6235511]
[1760242255214,0.1304,3812.1,3811.6,2.6235511]
[1760242255414,0.4295,3812.0,3811.5,0.1304]
[1760242255615,0.2325,3811.7,3811.5,0.1304]
[1760242256050,2.62331208,3812.0,3811.5,0.1304]
[1760242256236,0.4295,3811.6,3811.0,0.1304]
[1760242256438,0.4295,3811.6,3811.1,2.62390787]
[1760242256820,0.4295,3811.5,3811.0,0.1304]
[1760242257021,0.1304,3811.2,3810.6,0.1312]
[1760242257349,0.87826647,3811.2,3810.6,0.1312]
[1760242257552,0.74786647,3811.2,3809.3,3.08829342]
[1760242257753,2.1525,3811.8,3810.3,2.62444448]
[1760242257754,0.1312,3810.8,3810.3,2.62444448]
[1760242257929,0.1312,3810.8,3810.4,0.4632]
[1760242258120,0.1304,3811.0,3810.5,2.62430168]
[1760242258326,0.1304,3811.0,3810.4,0.1312]
[1760242258522,0.4295,3810.9,3810.4,0.1312]
[1760242258749,0.4295,3810.8,3810.4,0.1312]
[1760242259061,2.75438497,3811.0,3810.4,0.1312]
[1760242259225,0.4295,3810.7,3810.4,0.1312]
[1760242259545,0.4295,3810.6,3810.4,0.1312]
[1760242260227,0.1304,3811.0,3810.4,0.1312]
[1760242260556,3.18389498,3811.0,3810.4,0.1312]
[1760242260759,2.62431365,3810.6,3809.0,0.4632]
[1760242260959,2.62474263,3809.9,3809.0,2.62533922]
[1760242261133,0.662,3809.8,3808.8,0.002]
[1760242261457,2.6250205,3809.5,3808.8,0.002]
[1760242261630,0.59119118,3809.5,3808.8,0.002]
[1760242261829,3.21622671,3809.5,3808.8,0.002]
[1760242262030,0.4295,3809.4,3808.8,0.002]
[1760242262258,2.62531282,3809.1,3808.8,0.002]
[1760242262554,2.62542991,3808.9,3808.8,0.002]
[1760242263025,3.05492991,3808.9,3808.8,0.002]
[1760242263225,3.62295397,3808.9,3808.8,0.002]
[1760242264063,0.99752406,3808.9,3808.8,0.002]
[1760242264238,2.1525,3809.8,3808.8,0.002]
[1760242264239,0.4295,3809.2,3808.8,0.002]
[1760242264650,0.2325,3809.8,3809.1,2.62526824]
[1760242264849,0.4295,3809.7,3808.8,0.002]
[1760242265276,2.62439838,3810.4,3808.8,0.002]
[1760242265277,0.4295,3810.2,3808.9,0.6336]
[1760242265478,0.4295,3810.2,3809.0,2.62536098]
[1760242265673,0.4295,3810.2,3809.1,2.62529206]
[1760242265875,0.4295,3810.2,3808.9,0.6336]
[1760242266171,0.4295,3810.2,3809.0,0.1361557]
[1760242266343,3.05410302,3810.1,3809.1,2.62527001]
[1760242266538,0.4295,3810.1,3809.0,2.62535505]
[1760242266746,0.4295,3810.1,3808.8,0.002]
[1760242266747,0.4295,3810.1,3809.3,2.6250893]
[1760242267170,0.4295,3810.1,3809.2,2.62521405]
[1760242267478,3.05417633,3810.0,3809.0,2.62531529]
[1760242267677,0.662,3809.9,3808.9,2.62541763]
[1760242267841,0.662,3809.9,3808.9,2.88815939]
[1760242268041,0.662,3809.9,3809.2,2.62522233]
[1760242268279,0.662,3809.9,3809.4,2.62507986]
[1760242268477,0.2325,3809.9,3809.4,2.62507986]
[1760242268740,0.4295,3809.8,3809.5,2.62499657]
[1760242268956,0.4295,3810.3,3809.6,2.62492359]
[1760242269151,0.4295,3810.3,3809.0,2.62536098]
[1760242269152,7.4895,3810.3,3809.0,2.62536098]
[1760242269380,0.4295,3810.2,3809.1,0.33533027]
[1760242269543,0.2325,3809.2,3808.8,0.002]
[1760242270060,0.4295,3809.1,3808.8,0.002]
[1760242270454,7.4895,3809.1,3808.8,0.002]
[1760242270648,7.06,3809.1,3808.8,0.002]
[1760242270854,0.1312,3809.0,3808.8,0.002]
[1760242271662,0.5607,3809.0,3808.8,0.002]
[1760242271865,0.4295,3808.9,3808.8,0.002]
[1760242272065,0.1312,3809.0,3808.8,0.002]
[1760242272374,0.4295,3808.9,3808.8,0.002]
[1760242272567,0.1312,3809.0,3808.8,0.002]
[1760242273362,0.1312,3808.9,3808.8,0.002]
[1760242273573,10.24612991,3808.9,3808.8,0.002]
[1760242275074,12.16612991,3808.9,3808.8,0.002]
[1760242275274,13.64527332,3808.9,3808.8,0.002]
[1760242277457,6.58527332,3808.9,3808.8,0.002]
[1760242277793,5.10612991,3808.9,3808.8,0.002]
[1760242280297,0.1312,3808.9,3808.8,0.002]
[1760242280495,0.4295,3810.1,3808.8,0.6356]
[1760242280711,0.4295,3810.1,3809.6,2.62493808]
[1760242280873,0.2325,3810.5,3809.6,2.62493808]
[1760242280874,0.4295,3810.0,3809.6,2.62493808]
[1760242281073,0.4295,3810.0,3809.7,2.62487664]
[1760242281274,0.4295,3809.9,3808.9,2.62542991]
[1760242281507,0.4295,3809.9,3809.7,2.62486809]
[1760242281705,0.6655,3810.5,3810.1,2.6245369]
[1760242281886,0.6655,3810.5,3809.2,2.62522314]
[1760242282094,0.001,3810.6,3810.2,2.62448504]
[1760242282297,0.001,3810.6,3810.3,2.62446277]
[1760242282486,0.001,3810.6,3810.4,2.62437025]
[1760242282722,0.001,3810.6,3810.2,2.62449025]
[1760242283020,0.001,3810.6,3810.5,2.62432751]
[1760242283331,0.001,3810.6,3810.5,4.80676026]
[1760242283480,0.001,3810.6,3810.5,18.9180943]
[1760242283679,0.001,3811.0,3810.9,3.25765206]
[1760242284028,0.001,3811.0,3810.9,5.17765206]
[1760242284195,0.433,3813.4,3811.9,0.6336]
[1760242284522,0.433,3813.4,3813.0,2.62254246]
[1760242285427,0.2325,3813.5,3811.9,0.32569782]
[1760242285428,0.433,3813.3,3811.9,0.32569782]
[1760242285625,0.433,3813.3,3812.4,2.62298569]
[1760242285835,0.433,3813.3,3812.3,2.62308727]
[1760242286381,0.433,3813.3,3812.6,2.6228679]
[1760242287025,0.433,3813.3,3812.4,2.62296691]
[1760242287223,0.76178393,3813.3,3812.4,2.62296691]